[Event "23rd ETCC Women 2021"]
[Site "Catez"]
[Date "2021.11.19"]
[Round "7.24"]
[White "Lanchava, Tea"]
[Black "Movileanu, Daniela"]
[Result "1-0"]
[ECO "A16"]
[WhiteElo "2215"]
[BlackElo "2214"]
[Annotator "ChessBase"]
[PlyCount "135"]
[EventDate "2021.11.08"]
[EventType "team-tourn"]
[EventCountry "SLO"]
[SourceTitle "playchess.com"]
[Source "ChessBase"]
[SourceQuality "1"]
[WhiteTeam "Netherlands"]
[BlackTeam "Italy"]
[WhiteTeamCountry "NED"]
[BlackTeamCountry "ITA"]
[TimeControl "40/5400+30:1800+30"]

1. c4 {[%emt 0:00:10]} Nf6 {[%emt 0:00:10]} 2. Nc3 {[%emt 0:00:24]} d5 {
[%emt 0:00:13]} 3. cxd5 {[%emt 0:00:40]} Nxd5 {[%emt 0:00:07]} 4. g3 {[%emt 0:
00:31]} g6 {[%emt 0:00:33]} 5. Bg2 {[%emt 0:00:31]} Nb6 {[%emt 0:00:18]} 6. d3
{[%emt 0:00:40]} Bg7 {[%emt 0:00:33]} 7. Be3 {[%emt 0:01:00]} Nc6 {[%emt 0:00:
24]} 8. Qd2 {[%emt 0:01:45]} Nd4 {[%emt 0:05:48]} 9. Rc1 {[%emt 0:02:52]} Nf5 {
[%emt 0:08:56]} 10. Bc5 {[%emt 0:04:51]} O-O {[%emt 0:05:51]} 11. Nf3 {[%emt 0:
03:06]} c6 {[%emt 0:03:40]} 12. O-O {[%emt 0:03:52]} Re8 {[%emt 0:04:08]} 13.
g4 {[%emt 0:22:19]} Nd4 {[%emt 0:11:43]} 14. Nxd4 {[%emt 0:03:42]} Bxd4 {
[%emt 0:03:24]} 15. Bxd4 {[%emt 0:00:16]} Qxd4 {[%emt 0:00:06]} 16. h3 {
[%emt 0:00:27]} Nc4 {[%emt 0:02:37]} 17. Qc2 {[%emt 0:06:22]} Nd6 {[%emt 0:00:
54]} 18. e3 {[%emt 0:01:53]} Qf6 {[%emt 0:01:09]} 19. d4 {[%emt 0:03:17]} Be6 {
[%emt 0:09:43]} 20. b3 {[%emt 0:02:55]} Qh4 {[%emt 0:15:40]} 21. e4 {[%emt 0:
03:29]} h5 {[%emt 0:01:24]} 22. f3 {[%emt 0:03:32]} Rad8 {[%emt 0:01:30]} 23.
Ne2 {[%emt 0:01:55]} Bc8 {[%emt 0:05:51]} 24. Qc5 {[%emt 0:02:29]} b6 {[%emt 0:
05:18]} 25. Qxc6 {[%emt 0:01:38]} Ba6 {[%emt 0:00:32]} 26. Qc2 {[%emt 0:00:07]}
hxg4 {[%emt 0:00:56]} 27. hxg4 {[%emt 0:08:16]} Qg5 {[%emt 0:01:12]} 28. Rcd1 {
[%emt 0:02:29]} Qe3+ {[%emt 0:08:36]} 29. Rf2 {[%emt 0:00:06]} Bxe2 {[%emt 0:
00:36]} 30. Qxe2 {[%emt 0:00:30]} Qxe2 {[%emt 0:00:08]} 31. Rxe2 {[%emt 0:00:
04]} Nb5 {[%emt 0:00:06]} 32. Red2 {[%emt 0:00:16]} Nc3 {[%emt 0:00:02]} 33.
Re1 {[%emt 0:00:15]} e6 {[%emt 0:02:42]} 34. Bf1 {[%emt 0:00:12]} Rc8 {[%emt 0:
01:47]} 35. Rc2 {[%emt 0:06:41]} b5 {[%emt 0:00:14]} 36. b4 {[%emt 0:00:57]}
Rc7 {[%emt 0:00:24]} 37. Rec1 {[%emt 0:03:21]} Rec8 {[%emt 0:00:04]} 38. Kh2 {
[%emt 0:00:58]} Kf8 {[%emt 0:00:12]} 39. a4 {[%emt 0:02:08]} a6 {[%emt 0:00:03]
} 40. axb5 {[%emt 0:01:12]} axb5 {[%emt 0:00:52]} 41. Ra1 {[%emt 0:31:49]} Ke7
{[%emt 0:05:12]} 42. Rd2 {[%emt 0:00:00]} Rd8 {[%emt 0:02:42]} 43. g5 {[%emt 0:
00:00]} Rcd7 {[%emt 0:02:30]} 44. Rc2 {[%emt 0:00:00]} Rc7 {[%emt 0:00:30]} 45.
Rac1 {[%emt 0:00:00]} Rdc8 {[%emt 0:01:57]} 46. Bd3 {[%emt 0:00:00]} Kd8 {
[%emt 0:10:44]} 47. Kg2 {[%emt 0:00:00]} Na2 {[%emt 0:01:06]} 48. Rxc7 {
[%emt 0:00:00]} Rxc7 {[%emt 0:00:04]} 49. Rxc7 {[%emt 0:00:00]} Kxc7 {[%emt 0:
00:04]} 50. Bxb5 {[%emt 0:00:00]} Kd8 {[%emt 0:00:03]} 51. Kf2 {[%emt 0:00:00]}
Nxb4 {[%emt 0:00:18]} 52. Ba4 {[%emt 0:00:00]} Nd3+ {[%emt 0:08:22]} 53. Ke3 {
[%emt 0:00:00]} Ne1 {[%emt 0:00:37]} 54. d5 {[%emt 0:00:00]} exd5 {[%emt 0:01:
52]} 55. exd5 {[%emt 0:00:00]} Ke7 {[%emt 0:00:20]} 56. Ke4 {[%emt 0:03:58]}
Kd6 {[%emt 0:01:11]} 57. Be8 {[%emt 0:00:59]} Ke7 {[%emt 0:00:10]} 58. Bb5 {
[%emt 0:00:10]} Kd6 {[%emt 0:00:13]} 59. f4 {[%emt 0:01:21]} Ng2 {[%emt 0:01:
27]} 60. Be2 {[%emt 0:00:23]} Ne1 {[%emt 0:00:57]} 61. Bd1 {[%emt 0:00:40]} Ng2
{[%emt 0:00:37]} 62. Bg4 {[%emt 0:01:15]} Ne1 {[%emt 0:00:40]} 63. Bd1 {
[%emt 0:01:42]} Ng2 {[%emt 0:00:13]} 64. Bf3 {[%emt 0:00:31]} Ne1 {[%emt 0:00:
24]} 65. Be2 {[%emt 0:00:25]} Nc2 {[%emt 0:00:57]} 66. Bc4 {[%emt 0:00:38]} Kc5
{[%emt 0:00:59]} 67. d6 {[%emt 0:00:18]} f6 {[%emt 0:00:44]} 68. d7 {[%emt 0:
00:42]} 1-0

[Event "23rd ETCC Women 2021"]
[Site "Catez"]
[Date "2021.11.19"]
[Round "7.25"]
[White "Vega Gutierrez, Sabrina"]
[Black "Sebag, Marie"]
[Result "0-1"]
[ECO "B34"]
[WhiteElo "2394"]
[BlackElo "2447"]
[Annotator "NA"]
[PlyCount "82"]
[EventDate "2021.11.08"]
[EventType "team-tourn"]
[EventCountry "SLO"]
[SourceTitle "playchess.com"]
[Source "ChessBase"]
[SourceQuality "1"]
[WhiteTeam "Spain"]
[BlackTeam "France"]
[WhiteTeamCountry "ESP"]
[BlackTeamCountry "FRA"]
[TimeControl "40/5400+30:1800+30"]

1. e4 {[%emt 0:00:04]} c5 {[%emt 0:00:02]} 2. Nc3 {[%emt 0:00:10]} Nc6 {
[%emt 0:00:10]} 3. Nge2 {[%emt 0:00:12]} g6 {[%emt 0:05:35]} 4. d4 {[%emt 0:00:
13]} cxd4 {[%emt 0:00:09]} 5. Nxd4 {[%emt 0:00:07]} Bg7 {[%emt 0:00:06]} 6. Be3
{[%emt 0:00:08]} Nf6 {[%emt 0:01:18]} 7. Nb3 {[%emt 0:00:22]} O-O {[%emt 0:03:
40]} 8. Qd2 {[%emt 0:00:23]} a5 {[%emt 0:26:00]} 9. a4 {[%emt 0:00:26]} Nb4 {
[%emt 0:02:40]} 10. O-O-O {[%emt 0:04:33]} d5 {[%emt 0:01:59]} 11. f3 {[%emt 0:
07:41]} e6 {[%emt 0:06:52]} 12. g4 {[%emt 0:23:30]} Bd7 {[%emt 0:01:50]} 13.
Bd4 {[%emt 0:18:58]} dxe4 {[%emt 0:14:19]} 14. fxe4 {[%emt 0:17:42]} e5 {
[%emt 0:02:35]} 15. Bxe5 {[%emt 0:04:01]} Bxg4 {[%emt 0:00:06]} 16. Qxd8 {
[%emt 0:01:15]} Rfxd8 {[%emt 0:02:24]} 17. Rxd8+ {[%emt 0:00:27]} Rxd8 {
[%emt 0:00:07]} 18. Bb5 {[%emt 0:00:34]} b6 {[%emt 0:08:30]} 19. Bd4 {[%emt 0:
08:08]} Rb8 {[%emt 0:09:17]} 20. Rf1 {[%emt 0:03:47]} Nd7 {[%emt 0:00:46]} 21.
Nd5 {[%emt 0:02:27]} Nxd5 {[%emt 0:04:46]} 22. exd5 {[%emt 0:00:02]} Rd8 {
[%emt 0:04:17]} 23. Bxd7 {[%emt 0:04:42]} Rxd7 {[%emt 0:01:53]} 24. Bxb6 {
[%emt 0:00:03]} Rxd5 {[%emt 0:00:13]} 25. Bxa5 {[%emt 0:00:16]} Bd7 {[%emt 0:
00:24]} 26. Rd1 {[%emt 0:01:17]} Bxb2+ {[%emt 0:02:00]} 27. Kxb2 {[%emt 0:00:
01]} Rxd1 {[%emt 0:00:05]} 28. Nc5 {[%emt 0:00:02]} Bc6 {[%emt 0:01:12]} 29.
Bb6 {[%emt 0:00:59]} Rd2 {[%emt 0:00:29]} 30. a5 {[%emt 0:00:55]} Rxh2 {
[%emt 0:00:14]} 31. a6 {[%emt 0:00:13]} Re2 {[%emt 0:00:26]} 32. Nb3 {[%emt 0:
00:10]} Re8 {[%emt 0:01:01]} 33. a7 {[%emt 0:00:02]} h5 {[%emt 0:00:37]} 34.
Nd4 {[%emt 0:00:30]} Bg2 {[%emt 0:00:18]} 35. Bc7 {[%emt 0:01:53]} Rc8 {
[%emt 0:00:36]} 36. Bb8 {[%emt 0:00:22]} h4 {[%emt 0:00:42]} 37. Nb5 {[%emt 0:
00:42]} h3 {[%emt 0:00:15]} 38. Nc3 {[%emt 0:00:59]} f5 {[%emt 0:00:30]} 39.
Na4 {[%emt 0:00:32]} g5 {[%emt 0:00:24]} 40. Nb6 {[%emt 0:00:03]} Re8 {[%emt 0:
00:34]} 41. c4 {[%emt 0:30:09]} Bb7 {[%emt 0:30:55]} 0-1

[Event "23rd ETCC Women 2021"]
[Site "Catez"]
[Date "2021.11.19"]
[Round "7.26"]
[White "Guichard, Pauline"]
[Black "Garcia Martin, Marta"]
[Result "1-0"]
[ECO "D37"]
[WhiteElo "2409"]
[BlackElo "2324"]
[Annotator "NA"]
[PlyCount "77"]
[EventDate "2021.11.08"]
[EventType "team-tourn"]
[EventCountry "SLO"]
[SourceTitle "playchess.com"]
[Source "ChessBase"]
[SourceQuality "1"]
[WhiteTeam "France"]
[BlackTeam "Spain"]
[WhiteTeamCountry "FRA"]
[BlackTeamCountry "ESP"]
[TimeControl "40/5400+30:1800+30"]

1. d4 {[%emt 0:00:03]} Nf6 {[%emt 0:00:14]} 2. c4 {[%emt 0:00:08]} e6 {[%emt 0:
00:03]} 3. Nf3 {[%emt 0:00:04]} d5 {[%emt 0:00:21]} 4. Nc3 {[%emt 0:00:14]} a6
{[%emt 0:00:19]} 5. cxd5 {[%emt 0:00:23]} exd5 {[%emt 0:00:06]} 6. Bg5 {
[%emt 0:00:12]} Be6 {[%emt 0:00:06]} 7. Bxf6 {[%emt 0:00:07]} Qxf6 {[%emt 0:00:
04]} 8. Qb3 {[%emt 0:00:06]} Ra7 {[%emt 0:00:10]} 9. a3 {[%emt 0:00:12]} b5 {
[%emt 0:00:37]} 10. a4 {[%emt 0:00:18]} b4 {[%emt 0:00:12]} 11. a5 {[%emt 0:00:
15]} c6 {[%emt 0:00:22]} 12. Na4 {[%emt 0:00:14]} Bd6 {[%emt 0:00:19]} 13. e3 {
[%emt 0:00:17]} O-O {[%emt 0:00:56]} 14. Bd3 {[%emt 0:00:31]} Re7 {[%emt 0:01:
49]} 15. h3 {[%emt 0:03:46]} Qh6 {[%emt 0:01:27]} 16. Qc2 {[%emt 0:03:44]} Kh8
{[%emt 0:10:07]} 17. Rf1 {[%emt 0:17:15]} f5 {[%emt 0:04:26]} 18. O-O-O {
[%emt 0:02:22]} f4 {[%emt 0:22:22]} 19. Kb1 {[%emt 0:12:19]} fxe3 {[%emt 0:08:
44]} 20. fxe3 {[%emt 0:00:06]} Bg8 {[%emt 0:00:36]} 21. Rfe1 {[%emt 0:21:29]}
Rfe8 {[%emt 0:06:05]} 22. Nc5 {[%emt 0:00:09]} Rxe3 {[%emt 0:01:30]} 23. Rxe3 {
[%emt 0:00:33]} Rxe3 {[%emt 0:00:10]} 24. Nb3 {[%emt 0:07:46]} Bf7 {[%emt 0:11:
07]} 25. Ka2 {[%emt 0:00:07]} Bh5 {[%emt 0:06:33]} 26. Rf1 {[%emt 0:05:47]}
Bxf3 {[%emt 0:01:06]} 27. Rxf3 {[%emt 0:00:03]} Rxf3 {[%emt 0:00:06]} 28. gxf3
{[%emt 0:00:03]} Qxh3 {[%emt 0:01:40]} 29. Bxa6 {[%emt 0:00:25]} Qd7 {[%emt 0:
09:28]} 30. Bd3 {[%emt 0:01:21]} g6 {[%emt 0:00:59]} 31. a6 {[%emt 0:01:51]}
Kg7 {[%emt 0:03:47]} 32. Qe2 {[%emt 0:04:54]} Qc7 {[%emt 0:06:24]} 33. Kb1 {
[%emt 0:08:14]} Nd7 {[%emt 0:00:10]} 34. Qe6 {[%emt 0:03:10]} c5 {[%emt 0:03:
37]} 35. a7 {[%emt 0:06:11]} Qxa7 {[%emt 0:00:46]} 36. Qxd6 {[%emt 0:00:04]} c4
{[%emt 0:00:04]} 37. Qe7+ {[%emt 0:00:18]} Kh6 {[%emt 0:01:16]} 38. Nc5 {
[%emt 0:01:06]} cxd3 {[%emt 0:00:27]} 39. Ne6 {[%emt 0:00:47]} 1-0

[Event "23rd ETCC Women 2021"]
[Site "Catez"]
[Date "2021.11.19"]
[Round "7.27"]
[White "Matnadze, Ana"]
[Black "Milliet, Sophie"]
[Result "1/2-1/2"]
[ECO "A06"]
[WhiteElo "2418"]
[BlackElo "2418"]
[Annotator "NA"]
[PlyCount "72"]
[EventDate "2021.11.08"]
[EventType "team-tourn"]
[EventCountry "SLO"]
[SourceTitle "playchess.com"]
[Source "ChessBase"]
[SourceQuality "1"]
[WhiteTeam "Spain"]
[BlackTeam "France"]
[WhiteTeamCountry "ESP"]
[BlackTeamCountry "FRA"]
[TimeControl "40/5400+30:1800+30"]

1. Nf3 {[%emt 0:00:04]} c5 {[%emt 0:00:15]} 2. b3 {[%emt 0:00:08]} d5 {[%emt 0:
00:54]} 3. e3 {[%emt 0:00:29]} Nf6 {[%emt 0:03:26]} 4. Bb2 {[%emt 0:00:14]} e6
{[%emt 0:00:40]} 5. Bb5+ {[%emt 0:01:25]} Nbd7 {[%emt 0:01:43]} 6. c4 {[%emt 0:
03:45]} a6 {[%emt 0:11:06]} 7. Bxd7+ {[%emt 0:00:30]} Bxd7 {[%emt 0:00:44]} 8.
Ne5 {[%emt 0:00:36]} Be7 {[%emt 0:19:15]} 9. O-O {[%emt 0:06:15]} O-O {[%emt 0:
00:08]} 10. d3 {[%emt 0:01:50]} b5 {[%emt 0:04:26]} 11. Nd2 {[%emt 0:00:30]} a5
{[%emt 0:17:53]} 12. Nxd7 {[%emt 0:01:51]} Qxd7 {[%emt 0:00:04]} 13. Nf3 {
[%emt 0:06:19]} a4 {[%emt 0:01:39]} 14. Qe2 {[%emt 0:01:50]} Qb7 {[%emt 0:02:
36]} 15. cxb5 {[%emt 0:05:37]} Qxb5 {[%emt 0:00:27]} 16. bxa4 {[%emt 0:01:18]}
Rxa4 {[%emt 0:00:12]} 17. Be5 {[%emt 0:01:06]} Rfa8 {[%emt 0:03:07]} 18. Rfb1 {
[%emt 0:02:18]} Qa6 {[%emt 0:00:09]} 19. h3 {[%emt 0:04:19]} Nd7 {[%emt 0:01:
27]} 20. Bc3 {[%emt 0:02:02]} Bf6 {[%emt 0:06:23]} 21. Bxf6 {[%emt 0:00:45]}
gxf6 {[%emt 0:00:15]} 22. Rb2 {[%emt 0:01:49]} Ra3 {[%emt 0:01:30]} 23. Ne1 {
[%emt 0:00:46]} Ne5 {[%emt 0:00:27]} 24. Rd2 {[%emt 0:21:59]} c4 {[%emt 0:00:
49]} 25. dxc4 {[%emt 0:02:40]} Qxc4 {[%emt 0:00:03]} 26. Kf1 {[%emt 0:06:33]}
f5 {[%emt 0:03:44]} 27. Rc2 {[%emt 0:01:34]} Qxe2+ {[%emt 0:00:35]} 28. Kxe2 {
[%emt 0:00:06]} Kg7 {[%emt 0:03:20]} 29. Rb2 {[%emt 0:02:05]} Nc4 {[%emt 0:00:
49]} 30. Rc2 {[%emt 0:00:12]} Nd6 {[%emt 0:04:11]} 31. Nd3 {[%emt 0:01:35]} Ne4
{[%emt 0:00:13]} 32. Nc1 {[%emt 0:01:08]} Rb8 {[%emt 0:06:25]} 33. Ke1 {
[%emt 0:03:21]} Nc3 {[%emt 0:04:29]} 34. Kd2 {[%emt 0:05:12]} Ne4+ {[%emt 0:00:
16]} 35. Ke1 {[%emt 0:00:18]} Nc3 {[%emt 0:01:06]} 36. Kd2 {[%emt 0:00:21]}
Ne4+ {[%emt 0:00:30]} 1/2-1/2

[Event "23rd ETCC Women 2021"]
[Site "Catez"]
[Date "2021.11.19"]
[Round "7.28"]
[White "Navrotescu, Andreea"]
[Black "Eizaguerri Floris, Maria"]
[Result "1-0"]
[ECO "D35"]
[WhiteElo "2210"]
[BlackElo "2328"]
[Annotator "NA"]
[PlyCount "75"]
[EventDate "2021.11.08"]
[EventType "team-tourn"]
[EventCountry "SLO"]
[SourceTitle "playchess.com"]
[Source "ChessBase"]
[SourceQuality "1"]
[WhiteTeam "France"]
[BlackTeam "Spain"]
[WhiteTeamCountry "FRA"]
[BlackTeamCountry "ESP"]
[TimeControl "40/5400+30:1800+30"]

1. d4 {[%emt 0:00:03]} d5 {[%emt 0:00:05]} 2. c4 {[%emt 0:00:07]} e6 {[%emt 0:
00:05]} 3. Nc3 {[%emt 0:00:05]} Nf6 {[%emt 0:00:04]} 4. cxd5 {[%emt 0:00:06]}
exd5 {[%emt 0:00:06]} 5. Bg5 {[%emt 0:00:06]} c6 {[%emt 0:00:19]} 6. e3 {
[%emt 0:00:13]} Be7 {[%emt 0:00:19]} 7. Bd3 {[%emt 0:00:13]} Nbd7 {[%emt 0:00:
10]} 8. h3 {[%emt 0:00:37]} Nb6 {[%emt 0:05:14]} 9. Bf4 {[%emt 0:10:41]} Be6 {
[%emt 0:09:37]} 10. Nf3 {[%emt 0:00:48]} h6 {[%emt 0:06:44]} 11. Qc2 {[%emt 0:
09:26]} Bd6 {[%emt 0:07:10]} 12. Ne5 {[%emt 0:03:12]} Rc8 {[%emt 0:03:36]} 13.
O-O {[%emt 0:06:09]} O-O {[%emt 0:00:09]} 14. Qe2 {[%emt 0:12:42]} Bb8 {
[%emt 0:06:24]} 15. Bg3 {[%emt 0:01:06]} c5 {[%emt 0:06:05]} 16. Rad1 {[%emt 0:
05:51]} Qe7 {[%emt 0:05:12]} 17. Bh4 {[%emt 0:04:04]} Rfd8 {[%emt 0:20:42]} 18.
f4 {[%emt 0:01:52]} a6 {[%emt 0:10:54]} 19. f5 {[%emt 0:04:28]} Bd7 {[%emt 0:
00:04]} 20. Ng4 {[%emt 0:01:12]} cxd4 {[%emt 0:02:38]} 21. exd4 {[%emt 0:06:35]
} Qxe2 {[%emt 0:00:22]} 22. Nxf6+ {[%emt 0:00:06]} gxf6 {[%emt 0:00:05]} 23.
Nxe2 {[%emt 0:00:37]} Nc4 {[%emt 0:02:47]} 24. Bxc4 {[%emt 0:01:18]} dxc4 {
[%emt 0:02:09]} 25. Bxf6 {[%emt 0:00:42]} Re8 {[%emt 0:00:04]} 26. Nc3 {
[%emt 0:04:56]} Rc6 {[%emt 0:02:14]} 27. Bh4 {[%emt 0:03:40]} f6 {[%emt 0:06:
04]} 28. Bf2 {[%emt 0:11:51]} Kf7 {[%emt 0:02:12]} 29. d5 {[%emt 0:02:34]} Rcc8
{[%emt 0:00:01]} 30. Bb6 {[%emt 0:05:05]} Re5 {[%emt 0:02:38]} 31. g4 {[%emt 0:
00:12]} h5 {[%emt 0:00:37]} 32. Kg2 {[%emt 0:00:59]} Bd6 {[%emt 0:00:42]} 33.
Bd4 {[%emt 0:01:05]} Re7 {[%emt 0:00:08]} 34. Kf3 {[%emt 0:00:18]} Rh8 {
[%emt 0:00:26]} 35. g5 {[%emt 0:01:55]} fxg5 {[%emt 0:00:24]} 36. Bxh8 {
[%emt 0:00:18]} g4+ {[%emt 0:00:03]} 37. hxg4 {[%emt 0:00:09]} hxg4+ {[%emt 0:
00:14]} 38. Kxg4 {[%emt 0:00:19]} 1-0

[Event "23rd ETCC Women 2021"]
[Site "Catez"]
[Date "2021.11.19"]
[Round "7.29"]
[White "Danielian, Elina"]
[Black "Injac, Teodora"]
[Result "1/2-1/2"]
[ECO "E14"]
[WhiteElo "2450"]
[BlackElo "2387"]
[Annotator "ChessBase"]
[PlyCount "89"]
[EventDate "2021.11.08"]
[EventType "team-tourn"]
[EventCountry "SLO"]
[SourceTitle "playchess.com"]
[Source "ChessBase"]
[SourceQuality "1"]
[WhiteTeam "Armenia"]
[BlackTeam "Serbia"]
[WhiteTeamCountry "ARM"]
[BlackTeamCountry "SRB"]
[TimeControl "40/5400+30:1800+30"]

1. Nf3 {[%emt 0:00:04]} d5 {[%emt 0:00:41]} 2. d4 {[%emt 0:00:18]} Nf6 {
[%emt 0:00:24]} 3. c4 {[%emt 0:00:09]} e6 {[%emt 0:00:14]} 4. e3 {[%emt 0:00:
48]} b6 {[%emt 0:02:06]} 5. Nc3 {[%emt 0:00:38]} Bd6 {[%emt 0:02:16]} 6. Bd3 {
[%emt 0:02:28]} Bb7 {[%emt 0:04:23]} 7. cxd5 {[%emt 0:00:46]} exd5 {[%emt 0:00:
12]} 8. O-O {[%emt 0:00:21]} O-O {[%emt 0:04:03]} 9. Qc2 {[%emt 0:03:59]} a6 {
[%emt 0:05:30]} 10. e4 {[%emt 0:00:19]} dxe4 {[%emt 0:02:15]} 11. Nxe4 {
[%emt 0:00:04]} h6 {[%emt 0:02:59]} 12. Bd2 {[%emt 0:05:53]} Bxe4 {[%emt 0:04:
11]} 13. Bxe4 {[%emt 0:00:04]} Nxe4 {[%emt 0:00:04]} 14. Qxe4 {[%emt 0:00:03]}
Nd7 {[%emt 0:00:11]} 15. Rfd1 {[%emt 0:07:24]} Nf6 {[%emt 0:03:45]} 16. Qd3 {
[%emt 0:00:26]} Re8 {[%emt 0:04:25]} 17. Rac1 {[%emt 0:00:27]} Qd7 {[%emt 0:03:
08]} 18. Bc3 {[%emt 0:08:32]} Nd5 {[%emt 0:03:48]} 19. Re1 {[%emt 0:11:56]} Nf4
{[%emt 0:11:44]} 20. Qf1 {[%emt 0:00:44]} Qb5 {[%emt 0:10:33]} 21. Rc2 {
[%emt 0:06:43]} Qd5 {[%emt 0:05:58]} 22. a3 {[%emt 0:04:32]} a5 {[%emt 0:02:36]
} 23. Rd2 {[%emt 0:17:28]} Rxe1 {[%emt 0:03:58]} 24. Qxe1 {[%emt 0:00:27]} Kf8
{[%emt 0:01:20]} 25. Qf1 {[%emt 0:07:29]} Re8 {[%emt 0:03:33]} 26. Ne5 {
[%emt 0:00:22]} Re6 {[%emt 0:08:59]} 27. f3 {[%emt 0:15:18]} f6 {[%emt 0:01:23]
} 28. g3 {[%emt 0:03:34]} fxe5 {[%emt 0:05:22]} 29. dxe5 {[%emt 0:00:11]} Bc5+
{[%emt 0:02:07]} 30. Kh1 {[%emt 0:00:06]} Qc6 {[%emt 0:01:36]} 31. gxf4 {
[%emt 0:00:05]} Be3 {[%emt 0:00:16]} 32. Rd8+ {[%emt 0:01:57]} Ke7 {[%emt 0:00:
19]} 33. f5 {[%emt 0:00:29]} Kxd8 {[%emt 0:00:36]} 34. fxe6 {[%emt 0:00:09]}
Ke7 {[%emt 0:00:26]} 35. Qe2 {[%emt 0:02:52]} Bf4 {[%emt 0:00:16]} 36. Kg2 {
[%emt 0:00:34]} Qd5 {[%emt 0:01:21]} 37. Qc2 {[%emt 0:00:38]} Qxe6 {[%emt 0:00:
46]} 38. Qe4 {[%emt 0:00:19]} g5 {[%emt 0:00:32]} 39. h4 {[%emt 0:00:19]} Kd7 {
[%emt 0:00:56]} 40. h5 {[%emt 0:00:42]} Qf7 {[%emt 0:00:34]} 41. Qd3+ {[%emt 0:
15:27]} Ke7 {[%emt 0:04:21]} 42. Qg6 {[%emt 0:03:10]} Qc4 {[%emt 0:02:34]} 43.
Qc2 {[%emt 0:06:03]} Qf7 {[%emt 0:03:35]} 44. Qg6 {[%emt 0:01:05]} Qc4 {
[%emt 0:01:08]} 45. Qc2 {[%emt 0:00:42]} 1/2-1/2

[Event "23rd ETCC Women 2021"]
[Site "Catez"]
[Date "2021.11.19"]
[Round "7.30"]
[White "Eric, Jovana"]
[Black "Mkrtchian, Lilit"]
[Result "0-1"]
[ECO "C10"]
[WhiteElo "2253"]
[BlackElo "2379"]
[Annotator "NA"]
[PlyCount "88"]
[EventDate "2021.11.08"]
[EventType "team-tourn"]
[EventCountry "SLO"]
[SourceTitle "playchess.com"]
[Source "ChessBase"]
[SourceQuality "1"]
[WhiteTeam "Serbia"]
[BlackTeam "Armenia"]
[WhiteTeamCountry "SRB"]
[BlackTeamCountry "ARM"]
[TimeControl "40/5400+30:1800+30"]

1. e4 {[%emt 0:00:04]} e6 {[%emt 0:00:29]} 2. d4 {[%emt 0:00:14]} d5 {[%emt 0:
00:16]} 3. Nc3 {[%emt 0:00:54]} Be7 {[%emt 0:02:26]} 4. Be3 {[%emt 0:02:35]}
dxe4 {[%emt 0:04:54]} 5. Nxe4 {[%emt 0:00:08]} Nf6 {[%emt 0:00:28]} 6. Nxf6+ {
[%emt 0:05:09]} Bxf6 {[%emt 0:00:05]} 7. Nf3 {[%emt 0:00:14]} b6 {[%emt 0:08:
16]} 8. Bb5+ {[%emt 0:05:06]} c6 {[%emt 0:00:11]} 9. Bd3 {[%emt 0:00:24]} Nd7 {
[%emt 0:01:01]} 10. Qe2 {[%emt 0:04:19]} Bb7 {[%emt 0:00:30]} 11. O-O {[%emt 0:
03:45]} O-O {[%emt 0:02:39]} 12. Rad1 {[%emt 0:01:17]} Qc7 {[%emt 0:01:40]} 13.
Ng5 {[%emt 0:04:10]} g6 {[%emt 0:14:50]} 14. Qg4 {[%emt 0:06:37]} c5 {[%emt 0:
05:16]} 15. Bf4 {[%emt 0:16:14]} Qc8 {[%emt 0:10:45]} 16. Ne4 {[%emt 0:08:11]}
cxd4 {[%emt 0:12:54]} 17. Nd6 {[%emt 0:02:04]} Qc7 {[%emt 0:00:25]} 18. Nxf7 {
[%emt 0:05:03]} e5 {[%emt 0:06:39]} 19. Nh6+ {[%emt 0:03:27]} Kh8 {[%emt 0:00:
30]} 20. Bc1 {[%emt 0:01:17]} Nc5 {[%emt 0:02:01]} 21. Qg3 {[%emt 0:09:52]} Bg7
{[%emt 0:03:59]} 22. Rfe1 {[%emt 0:01:58]} Rac8 {[%emt 0:02:50]} 23. f3 {
[%emt 0:06:29]} e4 {[%emt 0:11:54]} 24. Qxc7 {[%emt 0:03:02]} Rxc7 {[%emt 0:00:
03]} 25. fxe4 {[%emt 0:00:24]} Nxd3 {[%emt 0:01:33]} 26. Rxd3 {[%emt 0:00:30]}
Rxc2 {[%emt 0:00:29]} 27. Rf3 {[%emt 0:06:15]} Rxf3 {[%emt 0:05:36]} 28. gxf3 {
[%emt 0:00:05]} d3 {[%emt 0:00:37]} 29. Rd1 {[%emt 0:02:13]} Rxc1 {[%emt 0:01:
02]} 30. Nf7+ {[%emt 0:00:10]} Kg8 {[%emt 0:00:01]} 31. Rxc1 {[%emt 0:00:08]}
Kxf7 {[%emt 0:00:53]} 32. Rc7+ {[%emt 0:01:24]} Ke6 {[%emt 0:00:02]} 33. Kf2 {
[%emt 0:00:17]} Ba6 {[%emt 0:00:44]} 34. Ke1 {[%emt 0:00:45]} Bxb2 {[%emt 0:00:
22]} 35. Kd2 {[%emt 0:00:59]} Be5 {[%emt 0:00:26]} 36. Rxa7 {[%emt 0:00:19]}
Bf4+ {[%emt 0:00:22]} 37. Kd1 {[%emt 0:00:47]} Bc4 {[%emt 0:00:08]} 38. h3 {
[%emt 0:00:55]} b5 {[%emt 0:00:41]} 39. Ra8 {[%emt 0:00:41]} Ke5 {[%emt 0:00:
36]} 40. h4 {[%emt 0:00:46]} Kd4 {[%emt 0:00:26]} 41. e5 {[%emt 0:07:29]} Bxe5
{[%emt 0:01:31]} 42. Ra7 {[%emt 0:03:12]} Bf4 {[%emt 0:03:12]} 43. Re7 {
[%emt 0:00:43]} Bxa2 {[%emt 0:02:24]} 44. Re4+ {[%emt 0:00:14]} Kc3 {[%emt 0:
00:03]} 0-1

[Event "23rd ETCC Women 2021"]
[Site "Catez"]
[Date "2021.11.19"]
[Round "7.31"]
[White "Gaboyan, Susanna"]
[Black "Manakova, Maria"]
[Result "0-1"]
[ECO "A07"]
[WhiteElo "2253"]
[BlackElo "2289"]
[Annotator "NA"]
[PlyCount "68"]
[EventDate "2021.11.08"]
[EventType "team-tourn"]
[EventCountry "SLO"]
[SourceTitle "playchess.com"]
[Source "ChessBase"]
[SourceQuality "1"]
[WhiteTeam "Armenia"]
[BlackTeam "Serbia"]
[WhiteTeamCountry "ARM"]
[BlackTeamCountry "SRB"]
[TimeControl "40/5400+30:1800+30"]

1. Nf3 {[%emt 0:00:06]} Nf6 {[%emt 0:00:10]} 2. g3 {[%emt 0:00:05]} g6 {
[%emt 0:00:31]} 3. Bg2 {[%emt 0:00:07]} Bg7 {[%emt 0:00:07]} 4. O-O {[%emt 0:
00:07]} O-O {[%emt 0:00:25]} 5. d3 {[%emt 0:01:16]} d5 {[%emt 0:00:10]} 6. Nbd2
{[%emt 0:00:08]} Nc6 {[%emt 0:01:33]} 7. e4 {[%emt 0:00:42]} e5 {[%emt 0:00:25]
} 8. c3 {[%emt 0:00:30]} a5 {[%emt 0:14:17]} 9. a4 {[%emt 0:05:08]} Re8 {
[%emt 0:05:14]} 10. exd5 {[%emt 0:04:58]} Nxd5 {[%emt 0:00:10]} 11. Re1 {
[%emt 0:00:08]} Be6 {[%emt 0:20:42]} 12. Nc4 {[%emt 0:02:08]} f6 {[%emt 0:00:
18]} 13. Nfd2 {[%emt 0:05:14]} Qd7 {[%emt 0:00:47]} 14. Ne4 {[%emt 0:10:32]} b6
{[%emt 0:00:49]} 15. Be3 {[%emt 0:13:45]} Rad8 {[%emt 0:03:25]} 16. Qc2 {
[%emt 0:05:09]} Kh8 {[%emt 0:07:08]} 17. Rad1 {[%emt 0:04:49]} Qf7 {[%emt 0:01:
51]} 18. Bc1 {[%emt 0:03:42]} h6 {[%emt 0:03:42]} 19. h3 {[%emt 0:04:06]} Nde7
{[%emt 0:07:54]} 20. b3 {[%emt 0:01:18]} g5 {[%emt 0:03:42]} 21. Kh2 {[%emt 0:
08:13]} f5 {[%emt 0:01:59]} 22. Ned2 {[%emt 0:00:28]} Bd5 {[%emt 0:00:48]} 23.
f3 {[%emt 0:09:15]} Be6 {[%emt 0:04:00]} 24. f4 {[%emt 0:05:57]} exf4 {[%emt 0:
02:36]} 25. gxf4 {[%emt 0:00:11]} Bd5 {[%emt 0:03:22]} 26. Nf3 {[%emt 0:00:47]}
g4 {[%emt 0:01:33]} 27. Nfe5 {[%emt 0:01:45]} Nxe5 {[%emt 0:01:52]} 28. fxe5 {
[%emt 0:05:19]} gxh3 {[%emt 0:02:42]} 29. Bxd5 {[%emt 0:02:26]} Nxd5 {[%emt 0:
00:48]} 30. d4 {[%emt 0:00:10]} Rg8 {[%emt 0:05:22]} 31. Rd3 {[%emt 0:00:28]}
Qg6 {[%emt 0:02:01]} 32. Rg3 {[%emt 0:00:46]} Bxe5 {[%emt 0:00:19]} 33. Nxe5 {
[%emt 0:00:16]} Qxg3+ {[%emt 0:00:04]} 34. Kh1 {[%emt 0:00:04]} Qxe1+ {[%emt 0:
00:24]} 0-1